Cogmind - Beta 14 @@@ ROGUE MODE // 2025.03.29 @ 18:35:29 Player: McSaucyNugget Result: Destroyed by as-50102 with Assembled Rifle Performance ------------- Evolutions (0) 0 Regions Visited (2) 400 Robots Destroyed (4) 20 Value Destroyed (70) 70 Prototype IDs (0) 0 Alien Tech Used (0) 0 Bonus (0) 0 TOTAL SCORE: 490 Bonus ------- None Cogmind --------- Core Integrity 0/250 Matter 129/300 Energy 79/100 System Corruption 6% Temperature Cool (13) Movement Core (400) Ox7 Location -10/Mines Parts ------- > --- POWER (1) -------- (None) > --- PROPULSION (2) --- (None) > --- UTILITY (2) ------ Large Storage Unit > --- WEAPON (2) ------- EM Pulse Gun > --- INVENTORY (15) --- Medium Storage Unit Medium Matter Pod (0) Medium Laser Peak State ------------ > --- POWER ------------ Ion Engine > --- PROPULSION ------- Light Treads Light Treads > --- UTILITY ---------- Small Storage Unit Seismic Detector > --- WEAPON ----------- EM Pulse Gun Medium Laser > --- INVENTORY -------- Small Laser Grenade Launcher Grenade Launcher [Rating: 7] Favorites ----------- Power Ion Engine Engine Ion Engine Propulsion Light Treads Treads Light Treads Utility Small Storage Unit Device Seismic Detector Storage Small Storage Unit Weapon Medium Laser Energy Gun Medium Laser Launcher Grenade Launcher Build | -11 -10 -10 ------- Run | Yrd Mat Min Slots Evolved . | . . . Power . | . . . Propulsion . | . . . Utility . | . . . Weapon . | . . . Parts Attached 15 | 6 6 3 Power 1 | 1 . . Engine 1 | 1 . . Core . | . . . Reactor . | . . . Propulsion 2 | 2 . . Treads 2 | 2 . . Leg . | . . . Wheel . | . . . Hover . | . . . Flight . | . . . Utility 4 | 1 3 . Device 1 | . 1 . Storage 3 | 1 2 . Processor . | . . . Hackware . | . . . Protection . | . . . Artifact . | . . . Weapon 8 | 2 3 3 Energy Gun 5 | 2 2 1 Energy Cannon . | . . . Ballistic Gun . | . . . Ballistic Cannon . | . . . Launcher 3 | . 1 2 Special Weapon . | . . . Impact Weapon . | . . . Slashing Weapon . | . . . Piercing Weapon . | . . . Special Melee Weapon . | . . . Unidentified Prototypes . | . . . Parts Lost 6 | . . 6 Power 1 | . . 1 Propulsion 2 | . . 2 Utility 1 | . . 1 Weapon 2 | . . 2 Highest Loss Streak 6 | . . 6 To Critical Strikes . | . . . Average Slot Usage (%) 95 | . 95 85 Engine 14 | . 14 14 Treads 28 | . 28 28 Device 10 | . 10 14 Storage 14 | . 14 14 Energy Gun 26 | . 27 . Launcher 1 | . . 14 Peak Build Rating 7 | 6 7 7 Average Rating 6 | 5 6 5 On Entrance 4 | . 6 7 Naked Turns . | . . . Heaviest Build 30 | 13 30 . Greatest Support 40 | 40 40 . Greatest Overweight (x) . | . . . Average Overweight (x) . | . . . Largest Inventory Capacity 15 | 8 15 15 Average Capacity 10 | 7 12 15 Most Carried 5 | 1 5 4 Average Carried 1 | . 2 3 Final Capacity 15 | 8 15 15 Final Carried 4 | 1 4 3 Class Distribution -------------------- 100% | Mutant Dominant Class ---------------- Mutant | -10/Materials Mutant | -10/Mines Resources | -11 -10 -10 ----------- Run | Yrd Mat Min Matter Collected 219 | 179 40 . Remotely . | . . . Salvage Created 126 | . 67 59 Parts 4 | . 4 . Haulers Intercepted . | . . . Recyclers Shooed . | . . . Parts Field Recycled . | . . . Retrieved Matter . | . . . Parts Self-Destructed . | . . . Prevented . | . . . Kills | -11 -10 -10 ------- Run | Yrd Mat Min Combat Hostiles Destroyed 16 | . 3 13 Guns 1 | . 1 . AOE 15 | . 2 13 Classes Destroyed 4 | . 3 1 Watcher 1 | . 1 . Swarmer 2 | . 2 . Grunt 1 | . 1 . Assembled 13 | . . 13 Best Kill Streak 13 | . 3 13 Combat Bots Only 13 | . 2 13 Max Kills in Single Turn 7 | . 1 7 Gunslinging . | . . . Exploded 7 | . 1 7 Melee . | . . . Uniques/NPCs Destroyed . | . . . Combat | -11 -10 -10 -------- Run | Yrd Mat Min Hostile Shots Fired 57 | . 14 43 Missed 17 | . 7 10 Damage Taken 818 | . 94 724 Core 263 | . 15 248 Absorbed by Shields . | . . . Core Remaining (%) 100 | 100 . . Volleys Fired 13 | . 8 5 Largest 2 | . 2 2 Hottest 90 | . 90 90 Shots Fired 20 | . 13 7 Gun 13 | . 10 3 Cannon . | . . . Launcher 7 | . 3 4 Special . | . . . Kinetic . | . . . Thermal 6 | . 5 1 Explosive 7 | . 3 4 Electromagnetic 7 | . 5 2 Robot Hit Streak 3 | . 3 3 Robot Miss Streak 2 | . 2 1 Penetration Max . | . . . Secondary Targets . | . . . Shots Hit Robots 11 | . 7 4 Core Hits 36 | . 4 32 Critical Kills . | . . . Critical Parts Destroyed . | . . . Critical Strikes . | . . . Melee Attacks . | . . . Impact . | . . . Slashing . | . . . Piercing . | . . . Sneak Attacks . | . . . Combat Hostiles . | . . . Follow-up Attacks . | . . . Damage Inflicted 1389 | . 285 1104 Guns 122 | . 83 39 Cannons . | . . . Explosions 1267 | . 202 1065 Melee . | . . . Ramming . | . . . Kinetic . | . . . Thermal 72 | . 60 12 Explosive 1219 | . 154 1065 Electromagnetic 98 | . 71 27 Impact . | . . . Slashing . | . . . Piercing . | . . . Highest Corruption 6 | . . 6 Average Corruption 6 | . . 6 Corruption Purged . | . . . Corruption Blocked . | . . . Overload Shots . | . . . Overflow Damage 59 | . 18 41 Projectiles . | . . . Explosions 59 | . 18 41 Melee . | . . . Knockbacks . | . . . Impact . | . . . Kinetic . | . . . Secondary . | . . . Self-Inflicted Damage 129 | . 31 98 Shots 4 | . 1 3 Rammed . | . . . Targets Rammed . | . . . Kicked . | . . . Crushed . | . . . Highest Temperature 108 | . 108 39 Average Temperature 35 | . 43 24 Received Heat Transfer 131 | . 18 113 Siege Activations . | . . . Robots Corrupted . | . . . Combat Hostiles . | . . . Parts Fried . | . . . Impact Corruptions . | . . . Robots Melted . | . . . Combat Hostiles . | . . . Parts Melted . | . . . Heat Transferred 124 | . 87 37 Parts Sabotaged . | . . . Parts Stolen . | . . . Parts Stripped . | . . . Power Chain Reactions 1 | . 1 . Alert | -11 -10 -10 ------- Run | Yrd Mat Min Peak Influence 105 | . 105 51 Initial 40 | . . 40 Average 38 | . 62 33 Maximum Alert Level . | . . . Low Security (%) 100 | 100 100 100 Level 1 . | . . . Level 2 . | . . . Level 3 . | . . . Level 4 . | . . . Level 5 . | . . . High Security . | . . . Max Security . | . . . Squads Dispatched . | . . . Investigation . | . . . Extermination . | . . . Reinforcement . | . . . Assault . | . . . Garrison . | . . . Intercept . | . . . Searches Triggered . | . . . Construction Impeded . | . . . Haulers Reinforced . | . . . Active Scanning Responses . | . . . Cargo Convoy Interrupts . | . . . Stealth | -11 -10 -10 --------- Run | Yrd Mat Min Distress Signals 1 | . 1 . Communications Jammed . | . . . Distress Signals . | . . . Times Spotted 26 | . 5 21 Peak Tracking Total 22 | . 6 22 Tactical Retreats . | . . . Traps | -11 -10 -10 ------- Run | Yrd Mat Min Traps Triggered . | . . . Indirectly . | . . . Trap Hack Attempts . | . . . Triggered . | . . . Disarmed . | . . . Reprogrammed . | . . . Reused . | . . . Traps Extracted . | . . . Installed . | . . . Triggered . | . . . Machines | -11 -10 -10 ---------- Run | Yrd Mat Min Machines Disabled . | . . . Max in Single Turn . | . . . Machines Repaired . | . . . Machines Dismantled . | . . . Machines Sabotaged . | . . . Overloaded Fab Kills . | . . . Hacking | -11 -10 -10 --------- Run | Yrd Mat Min Machines Accessed 1 | . 1 . Terminals 1 | . 1 . Fabricators . | . . . Repair Stations . | . . . Recycling Units . | . . . Scanalyzers . | . . . Garrison Access . | . . . Total Hacks 4 | . 4 . Successful 1 | . 1 . Failed 3 | . 3 . Catastrophic . | . . . Database Lockouts . | . . . Manual 4 | . 4 . Terminals 4 | . 4 . Fabricators . | . . . Repair Stations . | . . . Recycling Units . | . . . Scanalyzers . | . . . Garrison Access . | . . . Terminal Hacks 1 | . 1 . Branch Access Points 1 | . 1 . Fabricator Hacks . | . . . Repair Station Hacks . | . . . Recycling Unit Hacks . | . . . Scanalyzer . | . . . Garrison Access Hacks . | . . . Unauthorized Hacks . | . . . Terminals . | . . . Fabricators . | . . . Repair Stations . | . . . Recycling Units . | . . . Scanalyzers . | . . . Garrison Access . | . . . Data Cores Recovered . | . . . Used . | . . . Hacking Detections 1 | . 1 . Full Trace Events . | . . . Feedback Events . | . . . Feedback Blocked . | . . . Robot Schematics Acquired . | . . . Robots Built . | . . . Authchips . | . . . Time . | . . . Total Robot Build Rating . | . . . Part Schematics Acquired . | . . . Parts Built . | . . . Authchips . | . . . Time . | . . . Total Part Build Rating . | . . . Parts Repaired . | . . . Time . | . . . Parts Recycled . | . . . Recycled Matter . | . . . Retrieved Matter . | . . . Retrieved Components . | . . . Parts Scanalyzed . | . . . Part Schematics Acquired . | . . . Parts Damaged . | . . . Bothacking | -11 -10 -10 ------------ Run | Yrd Mat Min Used RIF Installer . | . . . Robots Hacked . | . . . Non-combat . | . . . Combat . | . . . Robot Hacks Applied . | . . . Relay Couplers Released . | . . . Fabnet Peak Effective % . | . . . Robots Rewired . | . . . Allies Hacked . | . . . Hacks Repelled . | . . . Allies | -11 -10 -10 -------- Run | Yrd Mat Min Total Allies . | . . . Largest Group . | . . . Highest-Rated Group . | . . . Highest-Rated Ally . | . . . Total Orders . | . . . Ally Attacks . | . . . Total Damage . | . . . Kills . | . . . Allies Corrupted . | . . . Allies Melted . | . . . Intel | -11 -10 -10 ------- Run | Yrd Mat Min Robot Analysis Total . | . . . Derelict Logs Recovered . | . . . Drone Launches . | . . . Drone Recoveries . | . . . Exploration | -11 -10 -10 ------------- Run | Yrd Mat Min Turns Passed 405 | 148 241 16 Spaces Moved 215 | 93 122 . Core 9 | 9 . . Treads 206 | 84 122 . Legs . | . . . Wheels . | . . . Hover . | . . . Flight . | . . . Fastest Speed 50 | 50 160 . Average Speed 155 | 149 160 . Slowest Speed 160 | 160 160 . Overloaded Moves . | . . . Propulsion Burnouts . | . . . Robots Hopped . | . . . Cave-ins Triggered . | . . . Exploration Rate (%) 13 | 5 29 6 Regions Visited 2 Branch Regions 1 Pre-discovered Areas . | . . . Known Exits Taken 1 | . 1 . Unknown Exits Taken 1 | 1 . . Scrap Searched . | . . . Spaces Dug . | . . . Terrain Destroyed 32 | . 11 21 Melee . | . . . Projectile . | . . . AOE 32 | . 11 21 Terrain Rammed . | . . . Walls Destroyed . | . . . Machines Disabled . | . . . Actions | -11 -10 -10 --------- Run | Yrd Mat Min Total 260 | 99 153 8 Wait 13 | . 13 . Move 213 | 92 121 . Hop . | . . . Pick Up 4 | 1 3 . Fast Attach 7 | 6 1 . Attach 1 | . . 1 Detach . | . . . Swap 7 | . 5 2 Drop 2 | . 2 . Fire 13 | . 8 5 Melee . | . . . Ram . | . . . Kick . | . . . Crush . | . . . Escape Stasis . | . . . Rewire . | . . . Trap . | . . . Miscellaneous . | . . . Route ------- -11/Scrapyard -10/Materials (discovered 2 exits: [*Mat] / *Min) -10/Mines History --------- Turn | Location | Event 33 | -11/Scrapyard | Discovered new exit (range 15) 149 | -11/Scrapyard | Entered Materials 284 | -10/Materials | Discovered new exit (range 9) 302 | -10/Materials | Identified exit to Mines 311 | -10/Materials | Build established: Mutant 390 | -10/Materials | Entered Mines 391 | -10/Mines | Assembled infested the area 401 | -10/Mines | Core integrity fell below 50% 403 | -10/Mines | Core integrity fell below 20% 406 | -10/Mines | Destroyed by as-50102 with Assembled Rifle Last Messages --------------- 00396_ as-58214 destroyed. 00397_ as-57810 destroyed. 00398_ Grenade Launcher destroyed. 00399_ as-66455 destroyed. 00399_ as-11594 destroyed. 00400_ The unstable cave ceiling collapses. 00400_ Ion Engine destroyed. 00401_ Destroyed Asb. Hover Unit. 00401_ as-62858 destroyed. 00401_ as-61228 destroyed. 00401_ as-60159 destroyed. 00401_ Destroyed Asb. Hover Unit. 00401_ as-67906 destroyed. 00402_ as-58713 destroyed. 00402_ Grenade Launcher destroyed. 00402_ Lgt. Treads destroyed. 00402_ System corrupted by crushing effect (+1). 00402_ System corrupted by crushing effect (+5). 00402_ Seismic Detector destroyed. 00406_ Lgt. Treads destroyed. Map ----- +----------------------------------------------------+ | ????????????????????????????????????????????????? | | ????????????????????????????????????????????????? | | ????????????????????????????????????????????????? | | ????????????????????????????????????????????????? | | ????????????????????????????????????????????????? | | ????????????????????????????????????????????????? | | ????????????????????????????????????????????????? | | ????????????????????????????????????????????????? | | ????????????????????????????????????????????????? | | ????????????????????????????????????????????????? | | ????????????????????????????????????????????????? | | ????????????????????????????????????????????????? | | ????????????????????????????????????????????????? | | ????????????????????????????????????????????????? | | ?????????????? ?????????????????????????????????? | | ?????????????? ????????##??????????????????????? | | ????????????? #?????? ##????????????????????? | | ????????????? ????? #????????????????????? | | ????????????? < ????# #????????????????????? | | ?????????????? #####$ #????????????????????? | | ???????????????# # # ##???????????????????? | | ????????????????# a #???????????????????? | | ????????????????# ###?????????????????? | | ?????????????????# a% ??????????????????? | | ?????????????????# aa #???????????????????? | | ?????????????????# @ #???????????????????? | | ?????????????????### # g #???????????????????? | | ?????????????????????# #???????????????????? | | ?????????????????????### #???????????????????? | | ???????????????????????# g ???????????????????? | | ???????????????????????# ??????????????????? | | ???????????????????????# ###?????????????????? | | ???????????????????????######???????????????????? | | ????????????????????????????????????????????????? | | ????????????????????????????????????????????????? | | | | | | | | | | | | | | | | | | | | | | | | | | | | | | | +----------------------------------------------------+ Best States ------------- Heat Dissipation 25 Energy Generation 10 Energy Capacity 250 Matter Stores 219 Matter Capacity 300 Sight Range 16 Terrain Scan Density 10 Evasion (%) 40 Recoil Reduction 2 Item Schematics ----------------- None Robot Schematics ------------------ None Fabricated ------------ Nothing Alien Tech Used ----------------- None Achievements -------------- Hunted Let's See Who's Tougher Quick And Dirty Challenges ------------ None Game ------ Seed ExplosiveVisualAutohacker Manual? 0 Play Time 00:05:42 Cumulative 3.7 hours Start 2025.03.29 @ 18:08:31 End 2025.03.29 @ 18:35:29 Sessions 1 Manual Loads 0 Difficulty Rogue Special Mode None Game No. 5 Rogue 5 Adventurer 0 Explorer 0 Win Type - Total 0 Types 0/0/0/0/0/0/0/0/0 Lore% 3 Gallery% 10 Achievement% 15 Wizard Run 0 Options --------- Layout 0 ASCII 0 Keyboard 1 Movement Vi Keybinds 0 Fullscreen 2 Font 18/SmallcapsGlow Map View 76x50 Zoom Use 0% Tactical HUD 1 Map Filters NONE Filters NONE Steam 1 RUN: d153eaff-83ac-4f13-99f4-6a47084fac7b